Workbook

Sheet Sheet1
A1: Annuity Value: | C1: 1,000,000
A2: Bank annuity rate | C2: 0.03 | D2: continuously compounded
A3: Payments per year: | C3: 2
A4: Length in years: | C4: 20
A6: To find the implied payment, we first convert the continuously-compounded rate to relevant frequency.
A7: Equiv. annual yield: | C7: =EXP(C2)-1 -> 0.03045453395
A8: Equi semi-annual yld: | C8: =2*(SQRT(C7+1)-1) -> 0.03022612923 | D8: Verify: | E8: =(1+C8/2)^2-1 -> 0.03045453395
A10: Second we compute the 2 relevant perpetuity factors:
A11: Perp 1 | B11: =1/(C8/2) -> 66.16791666
A12: Perp 2 | B12: =B11/(1+C8/2)^(C4*2) -> 36.3137226
A13: Annuity Factor: | C13: =B11-B12 -> 29.85419406
A15: Third we have the annuity factor, so we divide the value of the annuity by this to get the periodic payment.
A17: Payment: | B17: =C1/C13 -> 33,496.13
A20: Next we are going to duration-match this annuity, so we have to find its duration.
A21: To do this we have to lay out all future cash flows. | E21: We will assume that all flows are exactly 1/2 year apart.
A23: Time: | B23: 0.5 | C23: 1 | D23: 1.5 | E23: 2 | F23: 2.5 | G23: 3 | H23: 3.5 | I23: 4 | J23: 4.5 | K23: 5 | L23: 5.5 | M23: 6 | N23: 6.5 | O23: 7 | P23: 7.5 | Q23: 8 | R23: 8.5 | S23: 9 | T23: 9.5 | U23: 10 | V23: 10.5 | W23: 11 | X23: 11.5 | Y23: 12 | Z23: 12.5 | AA23: 13 | AB23: 13.5 | AC23: 14 | AD23: 14.5 | AE23: 15 | AF23: 15.5 | AG23: 16 | AH23: 16.5 | AI23: 17 | AJ23: 17.5 | AK23: 18 | AL23: 18.5 | AM23: 19 | AN23: 19.5 | AO23: 20
A24: Cash Flow: | B24: =$B$17 -> 33,496.13 | C24: =$B$17 -> 33,496.13 | D24: 33,496.13 | E24: 33,496.13 | F24: 33,496.13 | G24: 33,496.13 | H24: 33,496.13 | I24: 33,496.13 | J24: 33,496.13 | K24: 33,496.13 | L24: 33,496.13 | M24: 33,496.13 | N24: 33,496.13 | O24: 33,496.13 | P24: 33,496.13 | Q24: 33,496.13 | R24: 33,496.13 | S24: 33,496.13 | T24: 33,496.13 | U24: 33,496.13 | V24: 33,496.13 | W24: 33,496.13 | X24: 33,496.13 | Y24: 33,496.13 | Z24: 33,496.13 | AA24: 33,496.13 | AB24: 33,496.13 | AC24: 33,496.13 | AD24: 33,496.13 | AE24: 33,496.13 | AF24: 33,496.13 | AG24: 33,496.13 | AH24: 33,496.13 | AI24: 33,496.13 | AJ24: 33,496.13 | AK24: 33,496.13 | AL24: 33,496.13 | AM24: 33,496.13 | AN24: 33,496.13 | AO24: 33,496.13
A25: Disc Fctr: | B25: =EXP(-$C$2*B23) -> 0.9851119396 | C25: =EXP(-$C$2*C23) -> 0.9704455335 | D25: 0.9559974818 | E25: 0.9417645336 | F25: 0.9277434863 | G25: 0.9139311853 | H25: 0.9003245226 | I25: 0.8869204367 | J25: 0.8737159117 | K25: 0.8607079764 | L25: 0.8478937041 | M25: 0.8352702114 | N25: 0.8228346581 | O25: 0.810584246 | P25: 0.7985162188 | Q25: 0.7866278611 | R25: 0.774916498 | S25: 0.7633794943 | T25: 0.7520142543 | U25: 0.7408182207 | V25: 0.7297888743 | W25: 0.7189237334 | X25: 0.7082203535 | Y25: 0.6976763261 | Z25: 0.6872892788 | AA25: 0.6770568745 | AB25: 0.6669768109 | AC25: 0.6570468198 | AD25: 0.6472646671 | AE25: 0.6376281516 | AF25: 0.6281351052 | AG25: 0.6187833918 | AH25: 0.6095709073 | AI25: 0.6004955788 | AJ25: 0.5915553644 | AK25: 0.5827482524 | AL25: 0.5740722612 | AM25: 0.5655254387 | AN25: 0.5571058618 | AO25: 0.5488116361
A26: PV: | B26: =B24*B25 -> 32997.43874 | C26: =C24*C25 -> 32506.17088 | D26: 32022.21704 | E26: 31545.46834 | F26: 31075.8175 | G26: 30613.15885 | H26: 30157.3883 | I26: 29708.40328 | J26: 29266.10278 | K26: 28830.38727 | L26: 28401.15872 | M26: 27978.32056 | N26: 27561.77763 | O26: 27151.43622 | P26: 26747.204 | Q26: 26348.99001 | R26: 25956.70465 | S26: 25570.25967 | T26: 25189.5681 | U26: 24814.54429 | V26: 24445.10385 | W26: 24081.16367 | X26: 23722.64185 | Y26: 23369.45773 | Z26: 23021.53183 | AA26: 22678.78587 | AB26: 22341.14274 | AC26: 22008.52646 | AD26: 21680.86218 | AE26: 21358.0762 | AF26: 21040.09587 | AG26: 20726.84965 | AH26: 20418.26706 | AI26: 20114.27867 | AJ26: 19814.81607 | AK26: 19519.8119 | AL26: 19229.19976 | AM26: 18942.91427 | AN26: 18660.89102 | AO26: 18383.06655
A27: Value: | B27: =SUM(B26:AO26) -> 1000000 | C27: (We verify that we computed the payments correctly since their PV equals the annuity's value.)
A28: Wt: | B28: =B26/$B$27 -> 0.03299743874 | C28: =C26/$B$27 -> 0.03250617088 | D28: 0.03202221704 | E28: 0.03154546834 | F28: 0.0310758175 | G28: 0.03061315885 | H28: 0.0301573883 | I28: 0.02970840328 | J28: 0.02926610278 | K28: 0.02883038727 | L28: 0.02840115872 | M28: 0.02797832056 | N28: 0.02756177763 | O28: 0.02715143622 | P28: 0.026747204 | Q28: 0.02634899001 | R28: 0.02595670465 | S28: 0.02557025967 | T28: 0.0251895681 | U28: 0.02481454429 | V28: 0.02444510385 | W28: 0.02408116367 | X28: 0.02372264185 | Y28: 0.02336945773 | Z28: 0.02302153183 | AA28: 0.02267878587 | AB28: 0.02234114274 | AC28: 0.02200852646 | AD28: 0.02168086218 | AE28: 0.0213580762 | AF28: 0.02104009587 | AG28: 0.02072684965 | AH28: 0.02041826706 | AI28: 0.02011427867 | AJ28: 0.01981481607 | AK28: 0.0195198119 | AL28: 0.01922919976 | AM28: 0.01894291427 | AN28: 0.01866089102 | AO28: 0.01838306655 | AP28: Verify that the weights sum to 1: | AS28: =SUM(B28:AO28) -> 1
A29: Wt * D: | B29: =B28*B23 -> 0.01649871937 | C29: =C28*C23 -> 0.03250617088 | D29: =D28*D23 -> 0.04803332556 | E29: 0.06309093668 | F29: 0.07768954375 | G29: 0.09183947656 | H29: 0.105550859 | I29: 0.1188336131 | J29: 0.1316974625 | K29: 0.1441519363 | L29: 0.156206373 | M29: 0.1678699233 | N29: 0.1791515546 | O29: 0.1900600535 | P29: 0.20060403 | Q29: 0.2107919201 | R29: 0.2206319896 | S29: 0.230132337 | T29: 0.2393008969 | U29: 0.2481454429 | V29: 0.2566735904 | W29: 0.2648928004 | X29: 0.2728103813 | Y29: 0.2804334927 | Z29: 0.2877691478 | AA29: 0.2948242163 | AB29: 0.301605427 | AC29: 0.3081193704 | AD29: 0.3143725017 | AE29: 0.320371143 | AF29: 0.326121486 | AG29: 0.3316295944 | AH29: 0.3369014065 | AI29: 0.3419427374 | AJ29: 0.3467592813 | AK29: 0.3513566141 | AL29: 0.3557401955 | AM29: 0.3599153711 | AN29: 0.3638873748 | AO29: 0.3676613309
A30: D: | B30: =SUM(B29:AO29) -> 9.256574028
A33: Next we ascertain the portfolio that consists of the 30-year Bond and the 6-month bill, that has this duration.
A34: To do this we need the duration of the 30-year bond. We will also assume that settlement date is isue date, and that cash flows are exactly 1/2 year apart.
A35: Bond coupon: | C35: =0.03 -> 0.03
A37: Time: | B37: 0.5 | C37: 1 | D37: 1.5 | E37: 2 | F37: 2.5 | G37: 3 | H37: 3.5 | I37: 4 | J37: 4.5 | K37: 5 | L37: 5.5 | M37: 6 | N37: 6.5 | O37: 7 | P37: 7.5 | Q37: 8 | R37: 8.5 | S37: 9 | T37: 9.5 | U37: 10 | V37: 10.5 | W37: 11 | X37: 11.5 | Y37: 12 | Z37: 12.5 | AA37: 13 | AB37: 13.5 | AC37: 14 | AD37: 14.5 | AE37: 15 | AF37: 15.5 | AG37: 16 | AH37: 16.5 | AI37: 17 | AJ37: 17.5 | AK37: 18 | AL37: 18.5 | AM37: 19 | AN37: 19.5 | AO37: 20 | AP37: 20.5 | AQ37: 21 | AR37: 21.5 | AS37: 22 | AT37: 22.5 | AU37: 23 | AV37: 23.5 | AW37: 24 | AX37: 24.5 | AY37: 25 | AZ37: 25.5 | BA37: 26 | BB37: 26.5 | BC37: 27 | BD37: 27.5 | BE37: 28 | BF37: 28.5 | BG37: 29 | BH37: 29.5 | BI37: 30
A38: Cash Flow: | B38: =50*$C$35 -> 1.5 | C38: =50*$C$35 -> 1.5 | D38: 1.5 | E38: 1.5 | F38: 1.5 | G38: 1.5 | H38: 1.5 | I38: 1.5 | J38: 1.5 | K38: 1.5 | L38: 1.5 | M38: 1.5 | N38: 1.5 | O38: 1.5 | P38: 1.5 | Q38: 1.5 | R38: 1.5 | S38: 1.5 | T38: 1.5 | U38: 1.5 | V38: 1.5 | W38: 1.5 | X38: 1.5 | Y38: 1.5 | Z38: 1.5 | AA38: 1.5 | AB38: 1.5 | AC38: 1.5 | AD38: 1.5 | AE38: 1.5 | AF38: 1.5 | AG38: 1.5 | AH38: 1.5 | AI38: 1.5 | AJ38: 1.5 | AK38: 1.5 | AL38: 1.5 | AM38: 1.5 | AN38: 1.5 | AO38: 1.5 | AP38: 1.5 | AQ38: 1.5 | AR38: 1.5 | AS38: 1.5 | AT38: 1.5 | AU38: 1.5 | AV38: 1.5 | AW38: 1.5 | AX38: 1.5 | AY38: 1.5 | AZ38: 1.5 | BA38: 1.5 | BB38: 1.5 | BC38: 1.5 | BD38: 1.5 | BE38: 1.5 | BF38: 1.5 | BG38: 1.5 | BH38: 1.5 | BI38: =50*$C$35+100 -> 101.5
A39: Disct Fctr: | B39: =EXP(-B37*$C$2) -> 0.9851119396 | C39: =EXP(-C37*$C$2) -> 0.9704455335 | D39: 0.9559974818 | E39: 0.9417645336 | F39: 0.9277434863 | G39: 0.9139311853 | H39: 0.9003245226 | I39: 0.8869204367 | J39: 0.8737159117 | K39: 0.8607079764 | L39: 0.8478937041 | M39: 0.8352702114 | N39: 0.8228346581 | O39: 0.810584246 | P39: 0.7985162188 | Q39: 0.7866278611 | R39: 0.774916498 | S39: 0.7633794943 | T39: 0.7520142543 | U39: 0.7408182207 | V39: 0.7297888743 | W39: 0.7189237334 | X39: 0.7082203535 | Y39: 0.6976763261 | Z39: 0.6872892788 | AA39: 0.6770568745 | AB39: 0.6669768109 | AC39: 0.6570468198 | AD39: 0.6472646671 | AE39: 0.6376281516 | AF39: 0.6281351052 | AG39: 0.6187833918 | AH39: 0.6095709073 | AI39: 0.6004955788 | AJ39: 0.5915553644 | AK39: 0.5827482524 | AL39: 0.5740722612 | AM39: 0.5655254387 | AN39: 0.5571058618 | AO39: 0.5488116361 | AP39: 0.5406408953 | AQ39: 0.532591801 | AR39: 0.5246625421 | AS39: 0.5168513345 | AT39: 0.5091564206 | AU39: 0.5015760691 | AV39: 0.4941085743 | AW39: 0.486752256 | AX39: 0.479505459 | AY39: 0.4723665527 | AZ39: 0.465333931 | BA39: 0.4584060113 | BB39: 0.4515812349 | BC39: 0.4448580662 | BD39: 0.4382349925 | BE39: 0.4317105234 | BF39: 0.4252831911 | BG39: 0.4189515492 | BH39: 0.4127141733 | BI39: 0.4065696597
A40: PV: | B40: =B38*B39 -> 1.477667909 | C40: =C38*C39 -> 1.4556683 | D40: 1.433996223 | E40: 1.4126468 | F40: 1.391615229 | G40: 1.370896778 | H40: 1.350486784 | I40: 1.330380655 | J40: 1.310573868 | K40: 1.291061965 | L40: 1.271840556 | M40: 1.252905317 | N40: 1.234251987 | O40: 1.215876369 | P40: 1.197774328 | Q40: 1.179941792 | R40: 1.162374747 | S40: 1.145069242 | T40: 1.128021381 | U40: 1.111227331 | V40: 1.094683311 | W40: 1.0783856 | X40: 1.06233053 | Y40: 1.046514489 | Z40: 1.030933918 | AA40: 1.015585312 | AB40: 1.000465216 | AC40: 0.9855702297 | AD40: 0.9708970006 | AE40: 0.9564422274 | AF40: 0.9422026578 | AG40: 0.9281750877 | AH40: 0.9143563609 | AI40: 0.9007433682 | AJ40: 0.8873330466 | AK40: 0.8741223786 | AL40: 0.8611083918 | AM40: 0.848288158 | AN40: 0.8356587927 | AO40: 0.8232174541 | AP40: 0.810961343 | AQ40: 0.7988877015 | AR40: 0.7869938132 | AS40: 0.7752770017 | AT40: 0.7637346309 | AU40: 0.7523641036 | AV40: 0.7411628614 | AW40: 0.7301283839 | AX40: 0.7192581885 | AY40: 0.7085498291 | AZ40: 0.6980008965 | BA40: 0.687609017 | BB40: 0.6773718524 | BC40: 0.6672870993 | BD40: 0.6573524887 | BE40: 0.6475657851 | BF40: 0.6379247866 | BG40: 0.6284273239 | BH40: 0.6190712599 | BI40: 41.26682046
B41: =SUM(B40:BI40) -> 99.55603992
A43: Wt: | B43: =B40/$B$41 -> 0.0148425742 | C43: =C40/$B$41 -> 0.01462159706 | D43: 0.01440390984 | E43: 0.01418946356 | F43: 0.01397820997 | G43: 0.01377010153 | H43: 0.01356509143 | I43: 0.01336313353 | J43: 0.01316418239 | K43: 0.01296819325 | L43: 0.012775122 | M43: 0.01258492521 | N43: 0.01239756009 | O43: 0.01221298446 | P43: 0.01203115681 | Q43: 0.01185203623 | R43: 0.01167558239 | S43: 0.01150175562 | T43: 0.01133051679 | U43: 0.01116182737 | V43: 0.01099564941 | W43: 0.01083194552 | X43: 0.01067067886 | Y43: 0.01051181314 | Z43: 0.01035531264 | AA43: 0.01020114212 | AB43: 0.0100492669 | AC43: 0.009899652803 | AD43: 0.009752266175 | AE43: 0.009607073847 | AF43: 0.009464043151 | AG43: 0.009323141905 | AH43: 0.009184338405 | AI43: 0.00904760142 | AJ43: 0.008912900184 | AK43: 0.008780204388 | AL43: 0.008649484175 | AM43: 0.008520710132 | AN43: 0.008393853285 | AO43: 0.00826888509 | AP43: 0.008145777429 | AQ43: 0.008024502603 | AR43: 0.007905033324 | AS43: 0.00778734271 | AT43: 0.007671404282 | AU43: 0.007557191951 | AV43: 0.007444680021 | AW43: 0.007333843175 | AX43: 0.007224656475 | AY43: 0.007117095353 | AZ43: 0.007011135608 | BA43: 0.006906753397 | BB43: 0.006803925236 | BC43: 0.006702627986 | BD43: 0.006602838855 | BE43: 0.006504535392 | BF43: 0.006407695476 | BG43: 0.006312297319 | BH43: 0.006218319455 | BI43: =BI40/$B$41 -> 0.4145084567 | BJ43: Verify that the wts sum to 1: | BM43: =SUM(B43:BJ43) -> 1
A44: Wt * D: | B44: =B43*B37 -> 0.007421287099 | C44: =C43*C37 -> 0.01462159706 | D44: 0.02160586476 | E44: 0.02837892711 | F44: 0.03494552492 | G44: 0.0413103046 | H44: 0.04747782 | I44: 0.05345253411 | J44: 0.05923882075 | K44: 0.06484096624 | L44: 0.07026317102 | M44: 0.07550955129 | N44: 0.08058414057 | O44: 0.08549089125 | P44: 0.09023367611 | Q44: 0.0948162898 | R44: 0.09924245035 | S44: 0.1035158006 | T44: 0.1076399095 | U44: 0.1116182737 | V44: 0.1154543188 | W44: 0.1191514007 | X44: 0.1227128068 | Y44: 0.1261417577 | Z44: 0.1294414079 | AA44: 0.1326148475 | AB44: 0.1356651031 | AC44: 0.1385951392 | AD44: 0.1414078595 | AE44: 0.1441061077 | AF44: 0.1466926688 | AG44: 0.1491702705 | AH44: 0.1515415837 | AI44: 0.1538092241 | AJ44: 0.1559757532 | AK44: 0.158043679 | AL44: 0.1600154572 | AM44: 0.1618934925 | AN44: 0.1636801391 | AO44: 0.1653777018 | AP44: 0.1669884373 | AQ44: 0.1685145547 | AR44: 0.1699582165 | AS44: 0.1713215396 | AT44: 0.1726065963 | AU44: 0.1738154149 | AV44: 0.1749499805 | AW44: 0.1760122362 | AX44: 0.1770040836 | AY44: 0.1779273838 | AZ44: 0.178783958 | BA44: 0.1795755883 | BB44: 0.1803040187 | BC44: 0.1809709556 | BD44: 0.1815780685 | BE44: 0.182126991 | BF44: 0.1826193211 | BG44: 0.1830566222 | BH44: 0.1834404239 | BI44: 12.4352537
B45: =SUM(B44:BI44) -> 19.96050661
A48: The duration of the 6-month bill: | D48: 0.5
A50: Portfolio wts to match duration of annuity: | E50: wb*.5 + (1-wb) * 19.96 = 9.2567
A51: weight in the bill: | E51: =(B30-B45)/(D48-B45) -> 0.5500336038
A52: weight in the bond: | E52: =1-E51 -> 0.4499663962
A53: Verify: | E53: =E51*D48+E52*B45 -> 9.256574028
A55: SO if we buy: | B55: =E51*C1 -> 550,033.60 | C55: of the 6-month bills, and | E55: =E52*C1 -> 449,966.40 | F55: of the bond, we will have a duration-matched portfolio to duration hedge the annuity
A57: We want to track the value of the asset and liability over time. For example, suppose that in 6 months, the yield curve has shifted up by 30 basis points. | M57: =C2+0.003 -> 0.033
A59: We have to account for our position at that time | E59: Therefore we have to document the par value of the 2 securities in our portfolio.
B60: Par value of bill: | D60: =B55*EXP(C2*0.5) -> 558,346.30
B61: Par value of bond: | D61: =E55/(B41/100) -> 451,972.98
A63: 1. The bill will mature, so we will have cash worth: | E63: =D60 -> 558,346.30 | F63: in cash.
A64: 2. The bond will pay a coupon, and we will receive: | E64: =D61*0.015 -> 6,779.59
A65: 3. The bond is now worth:
A67: Time: | B67: 0.5 | C67: 1 | D67: 1.5 | E67: 2 | F67: 2.5 | G67: 3 | H67: 3.5 | I67: 4 | J67: 4.5 | K67: 5 | L67: 5.5 | M67: 6 | N67: 6.5 | O67: 7 | P67: 7.5 | Q67: 8 | R67: 8.5 | S67: 9 | T67: 9.5 | U67: 10 | V67: 10.5 | W67: 11 | X67: 11.5 | Y67: 12 | Z67: 12.5 | AA67: 13 | AB67: 13.5 | AC67: 14 | AD67: 14.5 | AE67: 15 | AF67: 15.5 | AG67: 16 | AH67: 16.5 | AI67: 17 | AJ67: 17.5 | AK67: 18 | AL67: 18.5 | AM67: 19 | AN67: 19.5 | AO67: 20 | AP67: 20.5 | AQ67: 21 | AR67: 21.5 | AS67: 22 | AT67: 22.5 | AU67: 23 | AV67: 23.5 | AW67: 24 | AX67: 24.5 | AY67: 25 | AZ67: 25.5 | BA67: 26 | BB67: 26.5 | BC67: 27 | BD67: 27.5 | BE67: 28 | BF67: 28.5 | BG67: 29 | BH67: 29.5
A68: Cash Flow: | B68: =50*$C$35 -> 1.5 | C68: =50*$C$35 -> 1.5 | D68: 1.5 | E68: 1.5 | F68: 1.5 | G68: 1.5 | H68: 1.5 | I68: 1.5 | J68: 1.5 | K68: 1.5 | L68: 1.5 | M68: 1.5 | N68: 1.5 | O68: 1.5 | P68: 1.5 | Q68: 1.5 | R68: 1.5 | S68: 1.5 | T68: 1.5 | U68: 1.5 | V68: 1.5 | W68: 1.5 | X68: 1.5 | Y68: 1.5 | Z68: 1.5 | AA68: 1.5 | AB68: 1.5 | AC68: 1.5 | AD68: 1.5 | AE68: 1.5 | AF68: 1.5 | AG68: 1.5 | AH68: 1.5 | AI68: 1.5 | AJ68: 1.5 | AK68: 1.5 | AL68: 1.5 | AM68: 1.5 | AN68: 1.5 | AO68: 1.5 | AP68: 1.5 | AQ68: 1.5 | AR68: 1.5 | AS68: 1.5 | AT68: 1.5 | AU68: 1.5 | AV68: 1.5 | AW68: 1.5 | AX68: 1.5 | AY68: 1.5 | AZ68: 1.5 | BA68: 1.5 | BB68: 1.5 | BC68: 1.5 | BD68: 1.5 | BE68: 1.5 | BF68: 1.5 | BG68: 1.5 | BH68: =50*$C$35+100 -> 101.5
A69: Disct Fctr: | B69: =EXP(-B67*$M$57) -> 0.9836353794 | C69: =EXP(-C67*$M$57) -> 0.9675385596 | D69: 0.9517051581 | E69: 0.9361308643 | F69: 0.9208114379 | G69: 0.905742708 | H69: 0.8909205722 | I69: 0.8763409951 | J69: 0.8620000072 | K69: 0.8478937041 | L69: 0.8340182453 | M69: 0.8203698531 | N69: 0.8069448117 | O69: 0.793739466 | P69: 0.7807502208 | Q69: 0.7679735397 | R69: 0.755405944 | S69: 0.7430440124 | T69: 0.730884379 | U69: 0.7189237334 | V69: 0.7071588193 | W69: 0.6955864335 | X69: 0.6842034254 | Y69: 0.6730066959 | Z69: 0.6619931967 | AA69: 0.6511599292 | AB69: 0.640503944 | AC69: 0.6300223399 | AD69: 0.6197122634 | AE69: 0.6095709073 | AF69: 0.5995955107 | AG69: 0.5897833576 | AH69: 0.5801317767 | AI69: 0.5706381403 | AJ69: 0.5612998636 | AK69: 0.5521144043 | AL69: 0.5430792615 | AM69: 0.5341919755 | AN69: 0.5254501265 | AO69: 0.5168513345 | AP69: 0.5083932585 | AQ69: 0.5000735957 | AR69: 0.491890081 | AS69: 0.4838404865 | AT69: 0.4759226205 | AU69: 0.4681343273 | AV69: 0.4604734867 | AW69: 0.4529380128 | AX69: 0.445525854 | AY69: 0.4382349925 | AZ69: 0.4310634431 | BA69: 0.4240092534 | BB69: 0.4170705028 | BC69: 0.4102453023 | BD69: 0.4035317935 | BE69: 0.3969281488 | BF69: 0.3904325703 | BG69: 0.3840432894 | BH69: 0.3777585666
A70: PV: | B70: =B68*B69 -> 1.475453069 | C70: =C68*C69 -> 1.451307839 | D70: =D68*D69 -> 1.427557737 | E70: =E68*E69 -> 1.404196296 | F70: =F68*F69 -> 1.381217157 | G70: =G68*G69 -> 1.358614062 | H70: =H68*H69 -> 1.336380858 | I70: =I68*I69 -> 1.314511493 | J70: =J68*J69 -> 1.293000011 | K70: =K68*K69 -> 1.271840556 | L70: =L68*L69 -> 1.251027368 | M70: =M68*M69 -> 1.23055478 | N70: =N68*N69 -> 1.210417218 | O70: =O68*O69 -> 1.190609199 | P70: =P68*P69 -> 1.171125331 | Q70: =Q68*Q69 -> 1.151960309 | R70: =R68*R69 -> 1.133108916 | S70: =S68*S69 -> 1.114566019 | T70: =T68*T69 -> 1.096326569 | U70: =U68*U69 -> 1.0783856 | V70: =V68*V69 -> 1.060738229 | W70: =W68*W69 -> 1.04337965 | X70: =X68*X69 -> 1.026305138 | Y70: =Y68*Y69 -> 1.009510044 | Z70: =Z68*Z69 -> 0.992989795 | AA70: =AA68*AA69 -> 0.9767398938 | AB70: =AB68*AB69 -> 0.960755916 | AC70: =AC68*AC69 -> 0.9450335099 | AD70: =AD68*AD69 -> 0.9295683951 | AE70: =AE68*AE69 -> 0.9143563609 | AF70: =AF68*AF69 -> 0.899393266 | AG70: =AG68*AG69 -> 0.8846750364 | AH70: =AH68*AH69 -> 0.8701976651 | AI70: =AI68*AI69 -> 0.8559572104 | AJ70: =AJ68*AJ69 -> 0.8419497954 | AK70: =AK68*AK69 -> 0.8281716065 | AL70: =AL68*AL69 -> 0.8146188923 | AM70: =AM68*AM69 -> 0.8012879632 | AN70: =AN68*AN69 -> 0.7881751897 | AO70: =AO68*AO69 -> 0.7752770017 | AP70: =AP68*AP69 -> 0.7625898877 | AQ70: =AQ68*AQ69 -> 0.7501103935 | AR70: =AR68*AR69 -> 0.7378351215 | AS70: =AS68*AS69 -> 0.7257607297 | AT70: =AT68*AT69 -> 0.7138839307 | AU70: =AU68*AU69 -> 0.702201491 | AV70: =AV68*AV69 -> 0.69071023 | AW70: =AW68*AW69 -> 0.6794070192 | AX70: =AX68*AX69 -> 0.6682887811 | AY70: =AY68*AY69 -> 0.6573524887 | AZ70: =AZ68*AZ69 -> 0.6465951646 | BA70: =BA68*BA69 -> 0.6360138801 | BB70: =BB68*BB69 -> 0.6256057542 | BC70: =BC68*BC69 -> 0.6153679534 | BD70: =BD68*BD69 -> 0.6052976903 | BE70: =BE68*BE69 -> 0.5953922232 | BF70: =BF68*BF69 -> 0.5856488554 | BG70: =BG68*BG69 -> 0.5760649341 | BH70: =BH68*BH69 -> 38.34249451
B71: =SUM(B70:BI70) -> 93.87786199
A73: So our position in the bond is worth: | D73: =D61*B71/100 -> 424,302.57
A75: So our asset portfolio is now:
B76: Cash | C76: =E63+E64 -> 565,125.89
B77: Bond: | C77: =D73 -> 424,302.57
B78: Total: | C78: =C76+C77 -> 989,428.46
A80: We have to make a cash payment on the annuity: | E80: =-B17 -> -33,496.13
A81: Leaving:
B82: Cash: | C82: =C76+E80 -> 531,629.76
B83: Bond: | C83: =C77 -> 424,302.57
B84: Total: | C84: =C82+C83 -> 955,932.33
A86: And our liability is now worth:
A87: semi-ann yld: | B87: =2*(SQRT(EXP(M57))-1) -> 0.03327375357
A88: perp 1 | B88: =1/(B87/2) -> 60.1074356
A89: perp 2 | B89: =B88/(1+B87/2)^(2*19.5) -> 31.58345964
A90: AF: | B90: =B88-B89 -> 28.52397596
A91: Annuity Value: | B91: =B90*B17 -> 955,442.84
A93: A Monte Carlo analysis of this hedge will look at one scenario over the life of the annuity -- all 40 periods.
A94: And it will do that many times, so that we have scenarios.
A96: In order to do this, we need programs that will compute all the above steps for us.

Sheet Simple1
A1: The first program that we have is to compute the value of the bond in our stylized situations.
A2: The program will need the term in years, the coupon rate, and the level of the (flat) yield curve, as by assumption we will be on a coupon payment (or issue) date, and all payments will occur on exactly 1/2-year increments.
A3: VBA interfaces with Excel:
A4: Level of flat yield curve: | C4: 0.03 | D4: (continuously-compounded) | F4: 0.01362710595 | G4: 0.00634848325 | H4: 0.005 | I4: 0.005 | J4: 0.01945437419 | K4: 0.02749036546 | L4: 0.02894516226 | M4: 0.03326581278 | N4: 0.02578377542 | O4: 0.02118635213 | P4: 0.007700367071 | Q4: 0.01438885618 | R4: 0.01993002054 | S4: 0.02566067522 | T4: 0.02260248635 | U4: 0.02173075777 | V4: 0.02271074295 | W4: 0.02874644394 | X4: 0.02988553088 | Y4: 0.02402436748 | Z4: 0.01826286684 | AA4: 0.01581659129 | AB4: 0.01712715582 | AC4: 0.01429109597 | AD4: 0.01479187185 | AE4: 0.01346335339 | AF4: 0.01476479208 | AG4: 0.005 | AH4: 0.005845699374 | AI4: 0.005 | AJ4: 0.01760523046 | AK4: 0.0282041679 | AL4: 0.04542845913 | AM4: 0.05244832088 | AN4: 0.05082702326 | AO4: 0.05691250314 | AP4: 0.07321422197 | AQ4: 0.06863106729 | AR4: 0.06200835734 | AS4: 0.06560720014 | AT4: 0.05061413278 | AU4: 0.04768002124 | AV4: 0.05123737168 | AW4: 0.04257903727 | AX4: 0.03389633275 | AY4: 0.02999523652 | AZ4: 0.02818326613 | BA4: 0.02923325306 | BB4: 0.0257461229 | BC4: 0.02194787307 | BD4: 0.02810206306 | BE4: 0.02458820347 | BF4: 0.02235029501 | BG4: 0.02057782251 | BH4: 0.02765131267 | BI4: 0.02603499841 | BJ4: 0.03025245409 | BK4: 0.03314515909 | BL4: 0.03147028711 | BM4: 0.04312389412
A5: Bond term in years | C5: 30
A6: Coupon rate: | C6: 0.03
A7: Annual std dev: | C7: 0.01 | D7: This is the annual standard deviation of interest rate changes.
A8: Bond value from subroutine: | D8: 99.55603992 | E8: We can verify that this indeed equals the value that we obtained on the preceding worksheet.
A9: Duration from subroutine: | D9: 19.96050661 | E9: We can verify that this indeed equals the value that we obtained on the preceding worksheet.
A10: Next, we'll need a procedure to generate a path for interest rates over the term of the annuity. The first example we use will be very simple and naïve.
A11: We will assume that the yield curve is always flat, and that in any 6-month period the yield will change by a draw from a normal distribution with a mean of 0, and standard deviation of 20 basis points.
A12: And we will cap the rate at 12%, and not allow it to fall below 50 basis points.
A17: The subroutine IRPath demonstrates simulating the interest where the yield curve is always flat, and interest change from one period to the next is a bounded arithmetic Brownian motion.
A22: Spreadheet function Norm.Inv gives the value under a normal distribution with the specified mean and standard deviation with the give probability.
A23: To use this we first get the probability by obtaining a uniform (0,1) random value. | G23: This is obtained with the VBA function Rnd.
A24: For example the value under a normal(0,1) distribution corresponding to 50% is: | G24: Probability: | H24: 0.5 | J24: And 95%: | K24: 0.95 | M24: 5%ile: | N24: 0.05 | P24: 92.5%ile: | Q24: 0.025 | S24: 97.5%ile | T24: 0.975
G25: Mean: | H25: 0 | K25: 0 | N25: 0 | Q25: 0 | T25: 0
G26: Std Dev: | H26: 1 | K26: 1 | N26: 1 | Q26: 1 | T26: 1
F27: =_xlfn.NORM.INV(H24,H25,H26) -> 0 | J27: =_xlfn.NORM.INV(K24,K25,K26) -> 1.644853627 | M27: =_xlfn.NORM.INV(N24,N25,N26) -> -1.644853627 | P27: =_xlfn.NORM.INV(Q24,Q25,Q26) -> -1.959963985 | S27: =_xlfn.NORM.INV(T24,T25,T26) -> 1.959963985
A30: There are 2 ways to change the mean and standard deviation of a normal distribution:
G31: 1. Change the values in the Norm.Inv function
G32: 2. Use the standard-unit normal: Z and use x = mean + Z * stddev
B33: Normal(),1) CDF | C33: Prob
B34: =_xlfn.NORM.S.INV(C34) -> -3.719016485 | C34: 0.0001
B35: -3.090232306 | C35: 0.001
B36: -2.878161739 | C36: 0.002
B37: -2.575829304 | C37: 0.005
B38: -2.432379059 | C38: 0.0075
B39: -3.090232306 | C39: 0.001
B40: -2.878161739 | C40: 0.002
B41: -2.575829304 | C41: 0.005
B42: -2.326347874 | C42: 0.01
B43: -2.053748911 | C43: 0.02
B44: -1.880793608 | C44: 0.03
B45: -1.750686071 | C45: 0.04
B46: -1.644853627 | C46: 0.05
B47: -1.554773595 | C47: 0.06
B48: -1.475791028 | C48: 0.07
B49: -1.40507156 | C49: 0.08
B50: -1.340755034 | C50: 0.09
B51: -1.281551566 | C51: 0.1
B52: -1.22652812 | C52: 0.11
B53: -1.174986792 | C53: 0.12
B54: -1.126391129 | C54: 0.13
B55: -1.080319341 | C55: 0.14
B56: -1.036433389 | C56: 0.15
B57: -0.9944578832 | C57: 0.16
B58: -0.9541652531 | C58: 0.17
B59: -0.9153650878 | C59: 0.18
B60: -0.8778962951 | C60: 0.19
B61: -0.8416212336 | C61: 0.2
B62: -0.806421247 | C62: 0.21
B63: -0.7721932142 | C63: 0.22
B64: -0.7388468492 | C64: 0.23
B65: -0.7063025628 | C65: 0.24
B66: =_xlfn.NORM.S.INV(C66) -> -0.6744897502 | C66: 0.25
B67: -0.6433454054 | C67: 0.26
B68: -0.612812991 | C68: 0.27
B69: -0.5828415073 | C69: 0.28
B70: -0.5533847196 | C70: 0.29
B71: -0.5244005127 | C71: 0.3
B72: -0.4958503473 | C72: 0.31
B73: -0.4676987991 | C73: 0.32
B74: -0.4399131657 | C74: 0.33
B75: -0.4124631294 | C75: 0.34
B76: -0.3853204664 | C76: 0.35
B77: -0.3584587933 | C77: 0.36
B78: -0.3318533464 | C78: 0.37
B79: -0.3054807881 | C79: 0.38
B80: -0.2793190344 | C80: 0.39
B81: -0.2533471031 | C81: 0.4
B82: -0.2275449766 | C82: 0.41
B83: -0.2018934791 | C83: 0.42
B84: -0.1763741648 | C84: 0.43
B85: -0.1509692155 | C85: 0.44
B86: -0.1256613469 | C86: 0.45
B87: -0.1004337205 | C87: 0.46
B88: -0.0752698621 | C88: 0.47
B89: -0.05015358346 | C89: 0.48
B90: -0.02506890826 | C90: 0.49
B91: 0 | C91: 0.5
B92: 0.02506890826 | C92: 0.51
B93: 0.05015358346 | C93: 0.52
B94: 0.0752698621 | C94: 0.53
B95: 0.1004337205 | C95: 0.54
B96: 0.1256613469 | C96: 0.55
B97: 0.1509692155 | C97: 0.56
B98: =_xlfn.NORM.S.INV(C98) -> 0.1763741648 | C98: 0.57
B99: 0.2018934791 | C99: 0.58
B100: 0.2275449766 | C100: 0.59
B101: 0.2533471031 | C101: 0.6
B102: 0.2793190344 | C102: 0.61
B103: 0.3054807881 | C103: 0.62
B104: 0.3318533464 | C104: 0.63
B105: 0.3584587933 | C105: 0.64
B106: 0.3853204664 | C106: 0.65
B107: 0.4124631294 | C107: 0.66
B108: 0.4399131657 | C108: 0.67
B109: 0.4676987991 | C109: 0.68
B110: 0.4958503473 | C110: 0.69
B111: 0.5244005127 | C111: 0.7
B112: 0.5533847196 | C112: 0.71
B113: 0.5828415073 | C113: 0.72
B114: 0.612812991 | C114: 0.73
B115: 0.6433454054 | C115: 0.74
B116: 0.6744897502 | C116: 0.75
B117: 0.7063025628 | C117: 0.76
B118: 0.7388468492 | C118: 0.77
B119: 0.7721932142 | C119: 0.78
B120: 0.806421247 | C120: 0.79
B121: 0.8416212336 | C121: 0.8
B122: 0.8778962951 | C122: 0.81
B123: 0.9153650878 | C123: 0.82
B124: 0.9541652531 | C124: 0.83
B125: 0.9944578832 | C125: 0.84
B126: 1.036433389 | C126: 0.85
B127: 1.080319341 | C127: 0.86
B128: 1.126391129 | C128: 0.87
B129: 1.174986792 | C129: 0.88
B130: =_xlfn.NORM.S.INV(C130) -> 1.22652812 | C130: 0.89
B131: 1.281551566 | C131: 0.9
B132: 1.340755034 | C132: 0.91
B133: 1.40507156 | C133: 0.92
B134: 1.475791028 | C134: 0.93
B135: 1.554773595 | C135: 0.94
B136: 1.644853627 | C136: 0.95
B137: 1.750686071 | C137: 0.96
B138: 1.880793608 | C138: 0.97
B139: 1.959963985 | C139: 0.975
B140: 2.053748911 | C140: 0.98
B141: 2.170090378 | C141: 0.985
B142: 2.326347874 | C142: 0.99
B143: 2.432379059 | C143: 0.9925
B144: 2.575829304 | C144: 0.995
B145: 2.807033768 | C145: 0.9975
B146: 3.090232306 | C146: 0.999
B147: 3.719016485 | C147: 0.9999

Sheet Together
A1: Now that we know the basic ideas of the things we need the computer to do we can pull it all together.
A2: A key part of this will be accounting for the values of the positions at all points In time. So we need to keep track of the par values of our positions, as we saw in the introduction.
A4: Annuity Value: | C4: 1,000,000.00
A5: Level of flat yield curve: | C5: 0.03 | D5: cc | E5: semi-annual rate: | G5: =2*(SQRT(EXP(C5))-1) -> 0.03022612923
A6: Bond term in years | C6: 30 | E6: periodic rate: | G6: =0.5*G5 -> 0.01511306462
A7: Coupon rate: | C7: 0.03
A8: Annuity Term: | C8: 20 | E8: Annual standard deviation of interest rate process: | I8: 0.006
A9: Pmt: | C9: =C4/B12 -> 33,496.13
A10: perp 1: | B10: =1/G6 -> 66.16791666
A11: perp 2: | B11: =B10/(1+G6)^(2*C8) -> 36.3137226 | F11: 1,078,091.90
A12: AF: | B12: =B10-B11 -> 29.85419406
D14: 22,806.45
D15: 5,349.68
A17: The main program that does the Monte Carlo analysis comprises Module 8. This is subroutine Monte.
A18: Most of the analysis is done in the subroutine OnePath, which comprises Module 4. It gets the current interest rate (the level of the flat yield curve), in continuously-compounded terms from this worksheet,
G19: The (original) term of the bond that we use as the long end of the barbell hedge, along with its coupon rate
G20: The original term of the annuity that we are hedging, the periodic payment on the annuity, and the initial value of the annuity
G21: The cap and floor on the arithmetic Brownian motion interest rate process
G22: The annual standard deviation of the interest rate process
B24: OnePath calls the function BondVal(Term, y, coupon) to get the value of the bond. This bond's term shrinks by 6 months each period.
B25: OnePath calls the function AnnuityDur(Aterm, y, payment) to get the annuity's duration each period.
B26: OnePath calls the function BondDur(Aterm, y, payment) to get the annuity's duration each period.
A27: Monte calls Onepath Ndraws times. Each call is one draw from a Monte Carlo simulation.
A28: It keeps a running sum of the P&L from each Monte Carlo draw, and also keeps track of the minimum ending cash position from all of the draws. The average P&L from the lifetime of the hedge is reported in Cell D14
A29: and the minimum ending position (i.e., the P&L is reported in cell D15.
